[Event "Snabb-SM för veteraner, 65+ 2019"]
[Site "Schackcentrum, Vegagatan 20, Gothenburg, Sweden"]
[Date "2019.10.05"]
[Round "3.7"]
[White "Kvarby, Anders"]
[Black "Gunnarsson, Lennart"]
[Result "1-0"]
[TimeControl "15 minutes + 10 seconds per move from move one"]
[WhiteFideId "1746596"]
[BlackFideId "1715860"]
[WhiteElo "1887"]
[BlackElo "1769"]

1. d4 {[%clk 00:15:16]} {[%emt 00:00:03]} d5 {[%clk 00:15:15]} {[%emt
00:00:05]} 2. c4 {[%clk 00:15:19]} {[%emt 00:00:07]} c6 {[%clk 00:15:18]}
{[%emt 00:00:07]} 3. Nf3 {[%clk 00:15:27]} {[%emt 00:00:02]} Nf6 {[%clk
00:15:24]} {[%emt 00:00:04]} 4. cxd5 {[%clk 00:15:34]} {[%emt 00:00:04]} cxd5
{[%clk 00:15:31]} {[%emt 00:00:04]} 5. Nc3 {[%clk 00:15:41]} {[%emt 00:00:03]}
e6 {[%clk 00:15:27]} {[%emt 00:00:13]} 6. Bf4 {[%clk 00:15:47]} {[%emt
00:00:03]} Bd6 {[%clk 00:15:17]} {[%emt 00:00:21]} 7. Bxd6 {[%clk 00:15:55]}
{[%emt 00:00:03]} Qxd6 {[%clk 00:15:25]} {[%emt 00:00:02]} 8. e3 {[%clk
00:15:51]} {[%emt 00:00:14]} a6 {[%clk 00:15:27]} {[%emt 00:00:08]} 9. Bd3
{[%clk 00:15:12]} {[%emt 00:00:48]} Nc6 {[%clk 00:14:58]} {[%emt 00:00:40]} 10.
O-O {[%clk 00:14:54]} {[%emt 00:00:27]} O-O {[%clk 00:14:57]} {[%emt 00:00:11]}
11. Rc1 {[%clk 00:13:42]} {[%emt 00:01:23]} b5 {[%clk 00:12:43]} {[%emt
00:02:23]} 12. Ne2 {[%clk 00:12:49]} {[%emt 00:01:03]} Bd7 {[%clk 00:12:25]}
{[%emt 00:00:28]} 13. Ng3 {[%clk 00:11:43]} {[%emt 00:01:16]} Rac8 {[%clk
00:11:58]} {[%emt 00:00:38]} 14. Qd2 {[%clk 00:11:03]} {[%emt 00:00:50]} e5
{[%clk 00:10:21]} {[%emt 00:01:47]} 15. dxe5 {[%clk 00:10:55]} {[%emt
00:00:18]} Nxe5 {[%clk 00:10:29]} {[%emt 00:00:02]} 16. Be2 {[%clk 00:10:13]}
{[%emt 00:00:52]} Bg4 {[%clk 00:09:40]} {[%emt 00:00:59]} 17. Nxe5 {[%clk
00:09:10]} {[%emt 00:01:13]} Qxe5 {[%clk 00:08:38]} {[%emt 00:01:11]} 18. Bxg4
{[%clk 00:08:20]} {[%emt 00:01:00]} Nxg4 {[%clk 00:08:45]} {[%emt 00:00:03]} 19.
h3 {[%clk 00:08:14]} {[%emt 00:00:16]} Nf6 {[%clk 00:08:44]} {[%emt 00:00:11]}
20. Ne2 {[%clk 00:07:44]} {[%emt 00:00:41]} Ne4 {[%clk 00:08:12]} {[%emt
00:00:41]} 21. Qd4 {[%clk 00:07:39]} {[%emt 00:00:15]} Qxd4 {[%clk 00:07:09]}
{[%emt 00:01:13]} 22. Nxd4 {[%clk 00:07:40]} {[%emt 00:00:10]} g6 {[%clk
00:03:30]} {[%emt 00:03:49]} 23. Rc6 {[%clk 00:07:42]} {[%emt 00:00:08]} Rxc6
{[%clk 00:03:18]} {[%emt 00:00:23]} 24. Nxc6 {[%clk 00:07:49]} {[%emt
00:00:02]} Kg7 {[%clk 00:03:15]} {[%emt 00:00:12]} 25. Nb4 {[%clk 00:06:38]}
{[%emt 00:01:21]} Nf6 {[%clk 00:03:24]} {[%emt 00:00:01]} 26. Nxa6 {[%clk
00:06:34]} {[%emt 00:00:14]} Ra8 {[%clk 00:03:29]} {[%emt 00:00:04]} 27. Nb4
{[%clk 00:06:38]} {[%emt 00:00:06]} Rc8 {[%clk 00:03:26]} {[%emt 00:00:13]} 28.
Rd1 {[%clk 00:06:37]} {[%emt 00:00:10]} Rd8 {[%clk 00:02:54]} {[%emt 00:00:43]}
29. f3 {[%clk 00:06:10]} {[%emt 00:00:37]} Re8 {[%clk 00:02:50]} {[%emt
00:00:14]} 30. Kf2 {[%clk 00:06:16]} {[%emt 00:00:04]} Rc8 {[%clk 00:02:49]}
{[%emt 00:00:11]} 31. Ke2 {[%clk 00:06:11]} {[%emt 00:00:14]} h5 {[%clk
00:02:45]} {[%emt 00:00:14]} 32. Nxd5 {[%clk 00:06:08]} {[%emt 00:00:13]} Nxd5
{[%clk 00:02:54]} {[%emt 00:00:01]} 33. Rxd5 {[%clk 00:06:17]} {[%emt
00:00:02]} Rc2+ {[%clk 00:03:01]} {[%emt 00:00:01]} 34. Rd2 {[%clk 00:06:25]}
{[%emt 00:00:03]} Rc1 {[%clk 00:03:08]} {[%emt 00:00:04]} 35. b3 {[%clk
00:06:14]} {[%emt 00:00:20]} Rg1 {[%clk 00:03:11]} {[%emt 00:00:07]} 36. Kd3
{[%clk 00:06:22]} {[%emt 00:00:02]} Rc1 {[%clk 00:03:15]} {[%emt 00:00:05]} 37.
Rc2 {[%clk 00:06:27]} {[%emt 00:00:05]} Rd1+ {[%clk 00:03:24]} {[%emt
00:00:02]} 38. Kc3 {[%clk 00:06:33]} {[%emt 00:00:04]} Kf6 {[%clk 00:03:06]}
{[%emt 00:00:28]} 39. a4 {[%clk 00:06:21]} {[%emt 00:00:22]} bxa4 {[%clk
00:03:15]} {[%emt 00:00:01]} 40. bxa4 {[%clk 00:06:29]} {[%emt 00:00:01]} Ra1
{[%clk 00:03:21]} {[%emt 00:00:03]} 41. Kb3 {[%clk 00:06:33]} {[%emt 00:00:07]}
Ke6 {[%clk 00:03:21]} {[%emt 00:00:11]} 42. Ra2 {[%clk 00:06:41]} {[%emt
00:00:02]} Re1 {[%clk 00:03:24]} {[%emt 00:00:04]} 43. e4 {[%clk 00:06:46]}
{[%emt 00:00:06]} Rb1+ {[%clk 00:03:29]} {[%emt 00:00:05]} 44. Kc4 {[%clk
00:06:47]} {[%emt 00:00:08]} Ke5 {[%clk 00:03:38]} {[%emt 00:00:03]} 45. a5
{[%emt 00:00:09]} Rb8 {[%clk 00:03:31]} {[%emt 00:00:11]} 46. a6 {[%clk
00:07:03]} {[%emt 00:00:01]} Ra8 {[%clk 00:03:38]} {[%emt 00:00:02]} 47. a7
{[%clk 00:07:12]} {[%emt 00:00:02]} Kd6 {[%clk 00:03:28]} {[%emt 00:00:20]} 48.
Kd4 {[%clk 00:07:17]} {[%emt 00:00:04]} h4 {[%clk 00:03:22]} {[%emt 00:00:16]}
49. f4 {[%clk 00:07:23]} {[%emt 00:00:04]} f6 {[%clk 00:03:03]} {[%emt
00:00:29]} 50. e5+ {[%clk 00:07:29]} {[%emt 00:00:05]} fxe5+ {[%clk 00:03:12]}
{[%emt 00:00:01]} 51. fxe5+ {[%clk 00:07:38]} Ke7 {[%clk 00:03:15]} {[%emt
00:00:07]} 52. Ra6 {[%clk 00:07:44]} {[%emt 00:00:04]} Ke8 {[%emt 00:00:05]}
1-0

[Event "Snabb-SM för veteraner, 65+ 2019"]
[Site "Schackcentrum, Vegagatan 20, Gothenburg, Sweden"]
[Date "2019.10.05"]
[Round "3.8"]
[White "Olesen, Christer"]
[Black "Degerfeldt, Sven"]
[Result "1/2-1/2"]
[TimeControl "15 minutes + 10 seconds per move from move one"]
[WhiteFideId "1739069"]
[BlackFideId "1717430"]
[WhiteElo "1809"]
[BlackElo "1822"]

1. d4 {[%clk 00:15:19]} {[%emt 00:55:19]} d5 {[%clk 00:15:17]} {[%emt
00:00:17]} 2. Bf4 {[%clk 00:15:22]} {[%emt 00:00:06]} Nf6 {[%clk 00:15:22]}
{[%emt 00:00:06]} 3. e3 {[%clk 00:15:26]} {[%emt 00:00:05]} c6 {[%clk
00:15:23]} {[%emt 00:00:10]} 4. c3 {[%clk 00:15:19]} {[%emt 00:00:16]} Bf5
{[%clk 00:15:03]} {[%emt 00:00:30]} 5. Nf3 {[%clk 00:15:01]} {[%emt 00:00:28]}
Nbd7 {[%clk 00:15:08]} {[%emt 00:00:06]} 6. h3 {[%clk 00:14:42]} {[%emt
00:00:28]} e6 {[%clk 00:15:15]} {[%emt 00:00:03]} 7. Nbd2 {[%clk 00:14:37]}
{[%emt 00:00:14]} h6 {[%clk 00:15:15]} {[%emt 00:00:11]} 8. Be2 {[%clk
00:14:02]} {[%emt 00:00:45]} Be7 {[%clk 00:15:00]} {[%emt 00:00:24]} 9. c4
{[%clk 00:13:31]} {[%emt 00:00:41]} O-O {[%clk 00:14:03]} {[%emt 00:01:07]} 10.
Qb3 {[%clk 00:13:35]} {[%emt 00:00:07]} Qb6 {[%clk 00:12:15]} {[%emt 00:01:59]}
11. c5 {[%clk 00:13:28]} {[%emt 00:00:16]} Qxb3 {[%clk 00:12:23]} {[%emt
00:00:02]} 12. axb3 {[%clk 00:13:36]} {[%emt 00:00:02]} a6 {[%clk 00:12:32]}
{[%emt 00:00:02]} 13. b4 {[%clk 00:13:15]} {[%emt 00:00:30]} Rac8 {[%clk
00:12:41]} {[%emt 00:00:02]} 14. Nb3 {[%clk 00:12:26]} {[%emt 00:00:59]} Bd8
{[%clk 00:12:49]} {[%emt 00:00:02]} 15. O-O {[%clk 00:09:56]} {[%emt 00:02:40]}
Bc7 {[%clk 00:12:36]} {[%emt 00:00:22]} 16. Bxc7 {[%clk 00:08:29]} {[%emt
00:01:37]} Rxc7 {[%clk 00:12:45]} {[%emt 00:00:02]} 17. Rfe1 {[%clk 00:06:50]}
{[%emt 00:01:48]} Re8 {[%clk 00:12:51]} {[%emt 00:00:04]} 18. Ne5 {[%clk
00:05:37]} {[%emt 00:01:23]} Bc2 {[%clk 00:09:44]} {[%emt 00:03:17]} 19. Nxd7
{[%clk 00:05:06]} {[%emt 00:00:42]} Nxd7 {[%clk 00:09:39]} {[%emt 00:00:15]} 20.
Nd2 {[%clk 00:05:04]} {[%emt 00:00:11]} e5 {[%clk 00:09:37]} {[%emt 00:00:13]}
21. Rac1 {[%clk 00:04:23]} {[%emt 00:00:51]} Bh7 {[%clk 00:09:16]} {[%emt
00:00:30]} 22. Nf3 {[%clk 00:04:09]} {[%emt 00:00:24]} e4 {[%clk 00:09:07]}
{[%emt 00:00:19]} 23. Nd2 {[%clk 00:04:07]} {[%emt 00:00:12]} f5 {[%clk
00:09:11]} {[%emt 00:00:06]} 24. Bd1 {[%clk 00:02:42]} {[%emt 00:01:36]} Rf8
{[%clk 00:08:47]} {[%emt 00:00:34]} 25. f4 {[%clk 00:01:51]} {[%emt 00:01:01]}
g5 {[%clk 00:08:21]} {[%emt 00:00:35]} 26. g3 {[%clk 00:01:42]} {[%emt
00:00:20]} Nf6 {[%clk 00:08:24]} {[%emt 00:00:07]} 27. Kf2 {[%clk 00:01:46]}
{[%emt 00:00:06]} Rg7 {[%clk 00:08:25]} {[%emt 00:00:09]} 28. Be2 {[%clk
00:01:43]} {[%emt 00:00:13]} Bg6 {[%clk 00:08:26]} {[%emt 00:00:09]} 29. Rg1
{[%clk 00:01:44]} {[%emt 00:00:09]} Kh7 {[%clk 00:08:31]} {[%emt 00:00:05]} 30.
Rg2 {[%clk 00:01:39]} {[%emt 00:00:14]} Re8 {[%clk 00:03:17]} {[%emt 00:05:25]}
31. Rcg1 {[%clk 00:01:41]} {[%emt 00:00:07]} Bh5 {[%clk 00:03:16]} {[%emt
00:00:10]} 32. g4 {[%clk 00:01:33]} {[%emt 00:00:18]} fxg4 {[%clk 00:03:24]}
{[%emt 00:00:03]} 33. hxg4 {[%clk 00:01:42]} {[%emt 00:00:01]} gxf4 {[%clk
00:02:17]} {[%emt 00:01:17]} 34. gxh5 {[%clk 00:01:12]} {[%emt 00:00:40]} Rxg2+
{[%clk 00:02:25]} {[%emt 00:00:02]} 35. Rxg2 {[%clk 00:01:21]} {[%emt
00:00:01]} f3 {[%clk 00:02:33]} {[%emt 00:00:02]} 36. Bxf3 {[%clk 00:01:04]}
{[%emt 00:00:27]} exf3 {[%clk 00:02:38]} {[%emt 00:00:05]} 37. Nxf3 {[%clk
00:01:13]} {[%emt 00:00:02]} Nxh5 {[%clk 00:02:15]} {[%emt 00:00:33]} 38. Ne5
{[%clk 00:01:17]} {[%emt 00:00:06]} Rf8+ {[%clk 00:02:13]} {[%emt 00:00:12]} 39.
Ke2 {[%clk 00:01:24]} {[%emt 00:00:03]} Rf6 {[%clk 00:02:13]} {[%emt 00:00:10]}
40. Kd3 {[%clk 00:01:07]} {[%emt 00:00:27]} Ng7 {[%clk 00:02:13]} {[%emt
00:00:10]} 41. b3 {[%clk 00:00:47]} {[%emt 00:00:30]} Ne6 {[%clk 00:02:18]}
{[%emt 00:00:05]} 42. Rh2 {[%clk 00:00:27]} {[%emt 00:00:30]} Ng5 {[%clk
00:02:07]} {[%emt 00:00:21]} 43. Ng4 {[%clk 00:00:32]} {[%emt 00:00:05]} Re6
{[%clk 00:02:07]} {[%emt 00:00:10]} 44. Ne5 {[%clk 00:00:38]} {[%emt 00:00:04]}
Kg7 {[%clk 00:02:09]} {[%emt 00:00:09]} 45. Rf2 {[%clk 00:00:41]} {[%emt
00:00:06]} Rf6 {[%clk 00:01:39]} {[%emt 00:00:40]} 46. Rg2 {[%clk 00:00:40]}
{[%emt 00:00:11]} Kh7 {[%clk 00:01:43]} {[%emt 00:00:06]} 47. Nd7 {[%clk
00:00:46]} {[%emt 00:00:04]} Rf7 {[%clk 00:01:38]} {[%emt 00:00:14]} 48. Ne5
{[%clk 00:00:56]} Re7 {[%clk 00:01:39]} {[%emt 00:00:09]} 49. Ng4 {[%clk
00:01:00]} {[%emt 00:00:07]} h5 {[%clk 00:01:34]} {[%emt 00:00:16]} 50. Ne5
{[%clk 00:00:59]} {[%emt 00:00:11]} Kh6 {[%clk 00:01:41]} {[%emt 00:00:02]} 51.
Rf2 {[%clk 00:01:05]} {[%emt 00:00:04]} Ne4 {[%clk 00:01:43]} {[%emt 00:00:09]}
52. Rf4 {[%clk 00:01:05]} {[%emt 00:00:10]} Rg7 {[%clk 00:01:16]} {[%emt
00:00:37]} 53. Nf7+ {[%clk 00:01:12]} {[%emt 00:00:03]} Kh7 {[%clk 00:01:20]}
{[%emt 00:00:05]} 54. Ne5 {[%clk 00:01:21]} {[%emt 00:00:01]} Kh6 {[%clk
00:01:20]} {[%emt 00:00:10]} 55. Nf7+ {[%clk 00:01:29]} {[%emt 00:00:02]} Kh7
{[%clk 00:01:27]} {[%emt 00:00:03]} 56. Ne5 {[%clk 00:01:34]} {[%emt 00:00:05]}
1/2-1/2

[Event "Snabb-SM för veteraner, 65+ 2019"]
[Site "Schackcentrum, Vegagatan 20, Gothenburg, Sweden"]
[Date "2019.10.05"]
[Round "3.9"]
[White "Olsson, Torgny"]
[Black "Gustavsson, Sture"]
[Result "1-0"]
[TimeControl "15 minutes + 10 seconds per move from move one"]
[WhiteFideId "1717340"]
[BlackFideId "1710168"]
[WhiteElo "1716"]
[BlackElo "1930"]

1. d4 {[%clk 00:15:17]} {[%emt 00:00:02]} Nf6 {[%clk 00:15:19]} 2. Bf4 {[%clk
00:15:23]} {[%emt 00:00:04]} g6 {[%clk 00:15:26]} {[%emt 00:00:03]} 3. e3
{[%clk 00:15:28]} {[%emt 00:00:05]} Bg7 {[%clk 00:15:34]} 4. c3 {[%clk
00:15:32]} {[%emt 00:00:07]} O-O {[%clk 00:15:42]} {[%emt 00:00:03]} 5. Nd2
{[%clk 00:15:31]} {[%emt 00:00:11]} d6 {[%clk 00:15:51]} {[%emt 00:00:01]} 6.
Ngf3 {[%clk 00:15:21]} {[%emt 00:00:20]} Nbd7 {[%clk 00:15:57]} {[%emt
00:00:04]} 7. Bd3 {[%clk 00:14:40]} {[%emt 00:00:50]} Re8 {[%clk 00:15:51]}
{[%emt 00:00:16]} 8. h4 {[%clk 00:14:09]} {[%emt 00:00:41]} h5 {[%clk
00:15:50]} {[%emt 00:00:10]} 9. Qc2 {[%clk 00:12:58]} {[%emt 00:01:21]} e5
{[%clk 00:15:12]} {[%emt 00:00:48]} 10. Bg5 {[%clk 00:12:48]} {[%emt 00:00:19]}
Qe7 {[%clk 00:13:11]} {[%emt 00:02:11]} 11. O-O-O {[%clk 00:12:30]} {[%emt
00:00:27]} d5 {[%clk 00:12:14]} {[%emt 00:01:08]} 12. dxe5 {[%clk 00:11:03]}
{[%emt 00:01:37]} Nxe5 {[%clk 00:12:21]} {[%emt 00:00:03]} 13. Nxe5 {[%clk
00:10:58]} {[%emt 00:00:14]} Qxe5 {[%clk 00:12:26]} {[%emt 00:00:05]} 14. f4
{[%clk 00:10:56]} {[%emt 00:00:12]} Qxe3 {[%clk 00:11:08]} {[%emt 00:01:29]} 15.
f5 {[%clk 00:11:00]} {[%emt 00:00:06]} Qg3 {[%clk 00:10:28]} {[%emt 00:00:49]}
16. fxg6 {[%clk 00:10:39]} {[%emt 00:00:31]} fxg6 {[%clk 00:10:16]} {[%emt
00:00:21]} 17. Bxg6 {[%clk 00:10:38]} {[%emt 00:00:11]} Re2 {[%clk 00:10:08]}
{[%emt 00:00:18]} 18. Rhf1 {[%clk 00:08:48]} {[%emt 00:02:00]} Ng4 {[%clk
00:05:43]} {[%emt 00:04:36]} 19. Bf7+ {[%clk 00:06:13]} {[%emt 00:02:45]} Kh8
{[%clk 00:02:50]} {[%emt 00:03:03]} 20. Qg6 {[%clk 00:05:30]} {[%emt 00:00:52]}
Nh6 {[%clk 00:02:06]} {[%emt 00:00:53]} 21. Bxd5 {[%clk 00:03:32]} {[%emt
00:02:08]} Qd6 {[%clk 00:01:18]} {[%emt 00:00:59]} 22. Bf6 {[%clk 00:02:13]}
{[%emt 00:01:29]} Re7 {[%clk 00:00:45]} {[%emt 00:00:43]} 23. Bxg7+ {[%clk
00:01:55]} {[%emt 00:00:28]} Rxg7 {[%clk 00:00:51]} {[%emt 00:00:04]} 24. Rf8+
{[%clk 00:01:52]} {[%emt 00:00:13]} Qxf8 {[%clk 00:00:51]} {[%emt 00:00:10]} 25.
Qxh6+ {[%clk 00:01:59]} {[%emt 00:00:03]} Qd6 {[%emt 00:00:13]} 1-0

[Event "Snabb-SM för veteraner, 65+ 2019"]
[Site "Schackcentrum, Vegagatan 20, Gothenburg, Sweden"]
[Date "2019.10.05"]
[Round "4.1"]
[White "Stroem, Leif"]
[Black "Andersson, Kaj"]
[Result "1-0"]
[TimeControl "15 minutes + 10 seconds per move from move one"]
[WhiteFideId "1709410"]
[BlackFideId "1709860"]
[WhiteElo "2014"]
[BlackElo "2083"]

1. c4 {[%clk 00:15:18]} c6 {[%clk 00:15:19]} {[%emt 00:00:02]} 2. g3 {[%clk
00:15:27]} {[%emt 00:00:01]} Nf6 {[%clk 00:15:26]} {[%emt 00:00:02]} 3. Bg2
{[%clk 00:15:36]} d5 {[%clk 00:15:26]} {[%emt 00:00:11]} 4. Nf3 {[%clk
00:15:45]} {[%emt 00:00:02]} Nbd7 {[%clk 00:15:21]} {[%emt 00:00:14]} 5. O-O
{[%clk 00:15:37]} {[%emt 00:00:18]} e6 {[%clk 00:15:22]} {[%emt 00:00:10]} 6.
b3 {[%clk 00:15:41]} {[%emt 00:00:06]} g6 {[%clk 00:15:24]} {[%emt 00:00:07]} 7.
Bb2 {[%clk 00:15:50]} {[%emt 00:00:01]} Bg7 {[%clk 00:15:33]} 8. d3 {[%clk
00:15:57]} {[%emt 00:00:04]} O-O {[%clk 00:15:38]} {[%emt 00:00:05]} 9. Nbd2
{[%clk 00:15:59]} {[%emt 00:00:08]} Qc7 {[%clk 00:15:03]} {[%emt 00:00:44]} 10.
e4 {[%clk 00:15:53]} {[%emt 00:00:17]} dxe4 {[%clk 00:15:05]} {[%emt 00:00:07]}
11. dxe4 {[%clk 00:16:01]} {[%emt 00:00:02]} Ne8 {[%clk 00:14:45]} {[%emt
00:00:30]} 12. Qc2 {[%clk 00:15:47]} {[%emt 00:00:25]} Bxb2 {[%clk 00:14:30]}
{[%emt 00:00:24]} 13. Qxb2 {[%clk 00:15:56]} {[%emt 00:00:02]} Ng7 {[%clk
00:14:08]} {[%emt 00:00:31]} 14. Rad1 {[%clk 00:15:55]} {[%emt 00:00:10]} b6
{[%clk 00:14:04]} {[%emt 00:00:14]} 15. e5 {[%clk 00:15:21]} {[%emt 00:00:45]}
Bb7 {[%clk 00:13:45]} {[%emt 00:00:30]} 16. Ne4 {[%clk 00:15:29]} {[%emt
00:00:01]} Rfd8 {[%clk 00:13:19]} {[%emt 00:00:35]} 17. Rd2 {[%clk 00:15:38]}
c5 {[%clk 00:13:15]} {[%emt 00:00:16]} 18. Nd6 {[%emt 00:00:50]} Bc6 {[%clk
00:12:12]} {[%emt 00:01:11]} 19. Rfd1 {[%clk 00:14:36]} {[%emt 00:00:34]} a6
{[%clk 00:11:41]} {[%emt 00:00:42]} 20. Ng5 {[%clk 00:13:54]} {[%emt 00:00:52]}
Ra7 {[%clk 00:10:40]} {[%emt 00:01:10]} 21. Bxc6 {[%clk 00:12:43]} {[%emt
00:01:22]} Qxc6 {[%clk 00:10:47]} {[%emt 00:00:02]} 22. Ndxf7 {[%clk 00:12:50]}
{[%emt 00:00:03]} Rf8 {[%clk 00:10:45]} {[%emt 00:00:12]} 23. Nh6+ {[%clk
00:12:32]} {[%emt 00:00:29]} Kh8 {[%clk 00:10:52]} {[%emt 00:00:02]} 24. Ngf7+
{[%clk 00:12:40]} {[%emt 00:00:02]} Rxf7 {[%clk 00:10:55]} {[%emt 00:00:07]} 25.
Nxf7+ {[%clk 00:12:48]} {[%emt 00:00:01]} Kg8 {[%clk 00:11:02]} {[%emt
00:00:02]} 26. Rd6 {[%clk 00:12:30]} {[%emt 00:00:29]} Qc8 {[%clk 00:10:32]}
{[%emt 00:00:40]} 27. Ng5 {[%clk 00:12:38]} {[%emt 00:00:02]} h6 {[%clk
00:10:20]} {[%emt 00:00:22]} 28. Nxe6 {[%clk 00:12:24]} {[%emt 00:00:24]} Nxe6
{[%clk 00:10:22]} {[%emt 00:00:07]} 29. Rxe6 {[%clk 00:12:33]} {[%emt
00:00:02]} Nf8 {[%clk 00:10:27]} {[%emt 00:00:05]} 30. Rxb6 {[%clk 00:10:59]}
{[%emt 00:01:44]} Qg4 {[%clk 00:09:56]} {[%emt 00:00:40]} 31. Qd2 {[%clk
00:10:29]} {[%emt 00:00:41]} Rf7 {[%clk 00:09:49]} {[%emt 00:00:17]} 32. Qd5
{[%clk 00:09:41]} {[%emt 00:00:59]} Kg7 {[%clk 00:09:05]} {[%emt 00:00:53]} 33.
Rb7 {[%clk 00:09:18]} {[%emt 00:00:33]} Ne6 {[%clk 00:08:46]} {[%emt 00:00:29]}
34. Rxf7+ {[%clk 00:09:10]} {[%emt 00:00:19]} Kxf7 {[%clk 00:08:55]} {[%emt
00:00:02]} 35. f3 {[%clk 00:08:41]} {[%emt 00:00:39]} Qf5 {[%clk 00:08:21]}
{[%emt 00:00:43]} 36. g4 {[%clk 00:07:51]} {[%emt 00:01:01]} Qc2 {[%clk
00:08:15]} {[%emt 00:00:15]} 37. Qd2 {[%clk 00:07:25]} {[%emt 00:00:37]} Qxd2
{[%emt 00:00:13]} 38. Rxd2 {[%emt 00:00:01]} Nd4 {[%clk 00:08:10]} {[%emt
00:00:01]} 39. Kf2 {[%clk 00:07:26]} {[%emt 00:00:08]} Ke6 {[%clk 00:08:19]}
{[%emt 00:00:01]} 40. f4 {[%clk 00:07:33]} {[%emt 00:00:04]} 1-0